{"text_format":"1","workbook":"xlsx","n_sheets":8,"sheets":["Дата","Таблица","Таблица КТС","1","2","3","4","Данные"],"not_rendered":{"charts":0,"images":0,"macros":1,"external_links":0,"defined_names":1,"comments":0,"pivot_tables":0},"unopened":[],"bounds":{"document_bytes":16777216,"sheet_cells":100000,"rows_first":2000,"rows_last":500,"rows_between":2000,"halvings":0,"cell_chars":16384,"cell_head_chars":4096},"cells_cut":0,"cells_raw":0,"read":"whole","date_system":"1900"}

{"sheet":"Дата","index":0,"n_rows":5,"n_cols":10,"rows_kept":5,"cut":false,"hidden":false,"merged":[]}
["№ решения","Дата","Дата решения","Дата вступления решения в законную силу","Дата подачи заявления",12,13,14,"Выплата з/п за месяц","Выплата з/п за год"]
[6,"2017-06-24","2017-06-25","2017-06-26","2017-04-30",{"$f":"TEXT(B2,\"[$-FC19]ДД ММММ ГГГГ\")","v":"24 июня 2017"},{"$f":"TEXT(C2,\"[$-FC19]ДД ММММ ГГГГ\")","v":"25 июня 2017"},{"$f":"C2","v":"2017-06-25"},"май",2017]
[null,null,null,null,null,null,{"$f":"TEXT(C2,\"[$-FC19]ДД ММММ ГГГГ\")&\" года\"","v":"25 июня 2017 года"}]
[null,null,null,null,null,null,{"$f":"TEXT(E2,\"[$-FC19]ДД ММММ ГГГГ\")","v":"30 апреля 2017"}]
[null,null,null,null,null,null,{"$f":"TEXT(E2,\"[$-FC19]ДД ММММ ГГГГ\")&\" года\"","v":"30 апреля 2017 года"}]

{"sheet":"Таблица","index":1,"n_rows":201,"n_cols":12,"rows_kept":201,"cut":false,"hidden":false,"merged":[]}
["№ п/п","Ф.И.О.","Результат","Должность","Дата рождения","Место рождения","Паспорт","Адрес","ИНН","Лицевой счёт","Выплата за месяц","Выплата за месяц прописью"]
[{"$f":"MAX($A$1:A1)+1","v":1},"Иванов Иван Иванович","Иванова Ивана Ивановича","Главный инженер","1961-10-21","с.Чужое Энского района","98 01 № 123456 выдан Отделением УФМС России по Энской Республике в Энском районе 15 ноября 2007 г.","Энская Республика, г. Энск, ул. Ленина, 1, кв. 2","202201234567","00000000000000000001",9800,{"$f":"MSumProp(K2)","v":"(Девять тысяч восемьсот) рублей 00 коп."}]
[null,"Сидоров Сидор Сидорович","Сидорова Сидора Сидоровича","Электросварщик ручной сварки","1962-11-22","г.Москва","98 02 № 234567 выдан Отделением УФМС России по Энской Республике в Энском районе 16 ноября 2007 г.","Энская Республика, г. Энск, ул. Ульянова, 1, кв. 3","202201234568","00000000000000000002",6500,{"$f":"MSumProp(K3)","v":"(Шесть тысяч пятьсот) рублей 00 коп."}]
[3,"Петров Пётр Петрович","Петрова Пётра Петровича","Инженер-сметчик","1963-12-23","г.Энск Энской АССР","98 03 № 345678 выдан Отделением УФМС России по Энской Республике в Энском районе 17 ноября 2007 г.","Энская Республика, г. Энск, ул. Ильича, 1, кв. 4","202201234569","00000000000000000003",7200,"(Семь тысяч двести) рублей 00 коп."]
[2,"Николаев Николай Николаевич","Николаева Николая Николаевича","Техник",null,null,null,null,null,null,null,"(Ноль) рублей 00 коп."]
[{"$f":"MAX($A$1:A5)+1","v":4},"Борисов Борис Борисович","Борисова Бориса Борисовича",null,null,null,null,null,null,null,null,"(Ноль) рублей 00 коп."]
[{"$f":"MAX($A$1:A6)+1","v":5},null,null,null,null,null,null,null,null,null,null,"(Ноль) рублей 00 коп."]
[{"$f":"MAX($A$1:A7)+1","v":6},null,null,null,null,null,null,null,null,null,null,"(Ноль) рублей 00 коп."]
[{"$f":"MAX($A$1:A8)+1","v":7},null,null,null,null,null,null,null,null,null,null,"(Ноль) рублей 00 коп."]
[{"$f":"MAX($A$1:A9)+1","v":8},null,null,null,null,null,null,null,null,null,null,"(Ноль) рублей 00 коп."]
[{"$f":"MAX($A$1:A10)+1","v":9},null,null,null,null,null,null,null,null,null,null,"(Ноль) рублей 00 коп."]
[{"$f":"MAX($A$1:A11)+1","v":10},null,null,null,null,null,null,null,null,null,null,"(Ноль) рублей 00 коп."]
[{"$f":"MAX($A$1:A12)+1","v":11},null,null,null,null,null,null,null,null,null,null,"(Ноль) рублей 00 коп."]
[{"$f":"MAX($A$1:A13)+1","v":12},null,null,null,null,null,null,null,null,null,null,"(Ноль) рублей 00 коп."]
[{"$f":"MAX($A$1:A14)+1","v":13},null,null,null,null,null,null,null,null,null,null,"(Ноль) рублей 00 коп."]
[{"$f":"MAX($A$1:A15)+1","v":14},null,null,null,null,null,null,null,null,null,null,"(Ноль) рублей 00 коп."]
[{"$f":"MAX($A$1:A16)+1","v":15},null,null,null,null,null,null,null,null,null,null,"(Ноль) рублей 00 коп."]
[{"$f":"MAX($A$1:A17)+1","v":16},null,null,null,null,null,null,null,null,null,null,"(Ноль) рублей 00 коп."]
[{"$f":"MAX($A$1:A18)+1","v":17},null,null,null,null,null,null,null,null,null,null,"(Ноль) рублей 00 коп."]
[{"$f":"MAX($A$1:A19)+1","v":18},null,null,null,null,null,null,null,null,null,null,"(Ноль) рублей 00 коп."]
[{"$f":"MAX($A$1:A20)+1","v":19},null,null,null,null,null,null,null,null,null,null,"(Ноль) рублей 00 коп."]
[{"$f":"MAX($A$1:A21)+1","v":20},null,null,null,null,null,null,null,null,null,null,"(Ноль) рублей 00 коп."]
[{"$f":"MAX($A$1:A22)+1","v":21},null,null,null,null,null,null,null,null,null,null,"(Ноль) рублей 00 коп."]
[{"$f":"MAX($A$1:A23)+1","v":22},null,null,null,null,null,null,null,null,null,null,"(Ноль) рублей 00 коп."]
[{"$f":"MAX($A$1:A24)+1","v":23},null,null,null,null,null,null,null,null,null,null,"(Ноль) рублей 00 коп."]
[{"$f":"MAX($A$1:A25)+1","v":24},null,null,null,null,null,null,null,null,null,null,"(Ноль) рублей 00 коп."]
[{"$f":"MAX($A$1:A26)+1","v":25},null,null,null,null,null,null,null,null,null,null,"(Ноль) рублей 00 коп."]
[{"$f":"MAX($A$1:A27)+1","v":26},null,null,null,null,null,null,null,null,null,null,"(Ноль) рублей 00 коп."]
[{"$f":"MAX($A$1:A28)+1","v":27},null,null,null,null,null,null,null,null,null,null,"(Ноль) рублей 00 коп."]
[{"$f":"MAX($A$1:A29)+1","v":28},null,null,null,null,null,null,null,null,null,null,"(Ноль) рублей 00 коп."]
[{"$f":"MAX($A$1:A30)+1","v":29},null,null,null,null,null,null,null,null,null,null,"(Ноль) рублей 00 коп."]
[{"$f":"MAX($A$1:A31)+1","v":30},null,null,null,null,null,null,null,null,null,null,"(Ноль) рублей 00 коп."]
[{"$f":"MAX($A$1:A32)+1","v":31},null,null,null,null,null,null,null,null,null,null,"(Ноль) рублей 00 коп."]
[{"$f":"MAX($A$1:A33)+1","v":32},null,null,null,null,null,null,null,null,null,null,"(Ноль) рублей 00 коп."]
[{"$f":"MAX($A$1:A34)+1","v":33},null,null,null,null,null,null,null,null,null,null,"(Ноль) рублей 00 коп."]
[{"$f":"MAX($A$1:A35)+1","v":34},null,null,null,null,null,null,null,null,null,null,"(Ноль) рублей 00 коп."]
[{"$f":"MAX($A$1:A36)+1","v":35},null,null,null,null,null,null,null,null,null,null,"(Ноль) рублей 00 коп."]
[{"$f":"MAX($A$1:A37)+1","v":36},null,null,null,null,null,null,null,null,null,null,"(Ноль) рублей 00 коп."]
[{"$f":"MAX($A$1:A38)+1","v":37},null,null,null,null,null,null,null,null,null,null,"(Ноль) рублей 00 коп."]
[{"$f":"MAX($A$1:A39)+1","v":38},null,null,null,null,null,null,null,null,null,null,"(Ноль) рублей 00 коп."]
[{"$f":"MAX($A$1:A40)+1","v":39},null,null,null,null,null,null,null,null,null,null,"(Ноль) рублей 00 коп."]
[{"$f":"MAX($A$1:A41)+1","v":40},null,null,null,null,null,null,null,null,null,null,"(Ноль) рублей 00 коп."]
[{"$f":"MAX($A$1:A42)+1","v":41},null,null,null,null,null,null,null,null,null,null,"(Ноль) рублей 00 коп."]
[{"$f":"MAX($A$1:A43)+1","v":42},null,null,null,null,null,null,null,null,null,null,"(Ноль) рублей 00 коп."]
[{"$f":"MAX($A$1:A44)+1","v":43},null,null,null,null,null,null,null,null,null,null,"(Ноль) рублей 00 коп."]
[{"$f":"MAX($A$1:A45)+1","v":44},null,null,null,null,null,null,null,null,null,null,"(Ноль) рублей 00 коп."]
[{"$f":"MAX($A$1:A46)+1","v":45},null,null,null,null,null,null,null,null,null,null,"(Ноль) рублей 00 коп."]
[{"$f":"MAX($A$1:A47)+1","v":46},null,null,null,null,null,null,null,null,null,null,"(Ноль) рублей 00 коп."]
[{"$f":"MAX($A$1:A48)+1","v":47},null,null,null,null,null,null,null,null,null,null,"(Ноль) рублей 00 коп."]
[{"$f":"MAX($A$1:A49)+1","v":48},null,null,null,null,null,null,null,null,null,null,"(Ноль) рублей 00 коп."]
[{"$f":"MAX($A$1:A50)+1","v":49},null,null,null,null,null,null,null,null,null,null,"(Ноль) рублей 00 коп."]
[{"$f":"MAX($A$1:A51)+1","v":50},null,null,null,null,null,null,null,null,null,null,"(Ноль) рублей 00 коп."]
[{"$f":"MAX($A$1:A52)+1","v":51},null,null,null,null,null,null,null,null,null,null,"(Ноль) рублей 00 коп."]
[{"$f":"MAX($A$1:A53)+1","v":52},null,null,null,null,null,null,null,null,null,null,"(Ноль) рублей 00 коп."]
[{"$f":"MAX($A$1:A54)+1","v":53},null,null,null,null,null,null,null,null,null,null,"(Ноль) рублей 00 коп."]
[{"$f":"MAX($A$1:A55)+1","v":54},null,null,null,null,null,null,null,null,null,null,"(Ноль) рублей 00 коп."]
[{"$f":"MAX($A$1:A56)+1","v":55},null,null,null,null,null,null,null,null,null,null,"(Ноль) рублей 00 коп."]
[{"$f":"MAX($A$1:A57)+1","v":56},null,null,null,null,null,null,null,null,null,null,"(Ноль) рублей 00 коп."]
[{"$f":"MAX($A$1:A58)+1","v":57},null,null,null,null,null,null,null,null,null,null,"(Ноль) рублей 00 коп."]
[{"$f":"MAX($A$1:A59)+1","v":58},null,null,null,null,null,null,null,null,null,null,"(Ноль) рублей 00 коп."]
[{"$f":"MAX($A$1:A60)+1","v":59},null,null,null,null,null,null,null,null,null,null,"(Ноль) рублей 00 коп."]
[{"$f":"MAX($A$1:A61)+1","v":60},null,null,null,null,null,null,null,null,null,null,"(Ноль) рублей 00 коп."]
[{"$f":"MAX($A$1:A62)+1","v":61},null,null,null,null,null,null,null,null,null,null,"(Ноль) рублей 00 коп."]
[{"$f":"MAX($A$1:A63)+1","v":62},null,null,null,null,null,null,null,null,null,null,{"$f":"MSumProp(K64)","v":"(Ноль) рублей 00 коп."}]
[{"$f":"MAX($A$1:A64)+1","v":63},null,null,null,null,null,null,null,null,null,null,"(Ноль) рублей 00 коп."]
[{"$f":"MAX($A$1:A65)+1","v":64},null,null,null,null,null,null,null,null,null,null,"(Ноль) рублей 00 коп."]
[{"$f":"MAX($A$1:A66)+1","v":65},null,null,null,null,null,null,null,null,null,null,"(Ноль) рублей 00 коп."]
[{"$f":"MAX($A$1:A67)+1","v":66},null,null,null,null,null,null,null,null,null,null,"(Ноль) рублей 00 коп."]
[{"$f":"MAX($A$1:A68)+1","v":67},null,null,null,null,null,null,null,null,null,null,"(Ноль) рублей 00 коп."]
[{"$f":"MAX($A$1:A69)+1","v":68},null,null,null,null,null,null,null,null,null,null,"(Ноль) рублей 00 коп."]
[{"$f":"MAX($A$1:A70)+1","v":69},null,null,null,null,null,null,null,null,null,null,"(Ноль) рублей 00 коп."]
[{"$f":"MAX($A$1:A71)+1","v":70},null,null,null,null,null,null,null,null,null,null,"(Ноль) рублей 00 коп."]
[{"$f":"MAX($A$1:A72)+1","v":71},null,null,null,null,null,null,null,null,null,null,"(Ноль) рублей 00 коп."]
[{"$f":"MAX($A$1:A73)+1","v":72},null,null,null,null,null,null,null,null,null,null,"(Ноль) рублей 00 коп."]
[{"$f":"MAX($A$1:A74)+1","v":73},null,null,null,null,null,null,null,null,null,null,"(Ноль) рублей 00 коп."]
[{"$f":"MAX($A$1:A75)+1","v":74},null,null,null,null,null,null,null,null,null,null,"(Ноль) рублей 00 коп."]
[{"$f":"MAX($A$1:A76)+1","v":75},null,null,null,null,null,null,null,null,null,null,"(Ноль) рублей 00 коп."]
[{"$f":"MAX($A$1:A77)+1","v":76},null,null,null,null,null,null,null,null,null,null,"(Ноль) рублей 00 коп."]
[{"$f":"MAX($A$1:A78)+1","v":77},null,null,null,null,null,null,null,null,null,null,"(Ноль) рублей 00 коп."]
[{"$f":"MAX($A$1:A79)+1","v":78},null,null,null,null,null,null,null,null,null,null,"(Ноль) рублей 00 коп."]
[{"$f":"MAX($A$1:A80)+1","v":79},null,null,null,null,null,null,null,null,null,null,"(Ноль) рублей 00 коп."]
[{"$f":"MAX($A$1:A81)+1","v":80},null,null,null,null,null,null,null,null,null,null,"(Ноль) рублей 00 коп."]
[{"$f":"MAX($A$1:A82)+1","v":81},null,null,null,null,null,null,null,null,null,null,"(Ноль) рублей 00 коп."]
[{"$f":"MAX($A$1:A83)+1","v":82},null,null,null,null,null,null,null,null,null,null,"(Ноль) рублей 00 коп."]
[{"$f":"MAX($A$1:A84)+1","v":83},null,null,null,null,null,null,null,null,null,null,"(Ноль) рублей 00 коп."]
[{"$f":"MAX($A$1:A85)+1","v":84},null,null,null,null,null,null,null,null,null,null,"(Ноль) рублей 00 коп."]
[{"$f":"MAX($A$1:A86)+1","v":85},null,null,null,null,null,null,null,null,null,null,"(Ноль) рублей 00 коп."]
[{"$f":"MAX($A$1:A87)+1","v":86},null,null,null,null,null,null,null,null,null,null,"(Ноль) рублей 00 коп."]
[{"$f":"MAX($A$1:A88)+1","v":87},null,null,null,null,null,null,null,null,null,null,"(Ноль) рублей 00 коп."]
[{"$f":"MAX($A$1:A89)+1","v":88},null,null,null,null,null,null,null,null,null,null,"(Ноль) рублей 00 коп."]
[{"$f":"MAX($A$1:A90)+1","v":89},null,null,null,null,null,null,null,null,null,null,"(Ноль) рублей 00 коп."]
[{"$f":"MAX($A$1:A91)+1","v":90},null,null,null,null,null,null,null,null,null,null,"(Ноль) рублей 00 коп."]
[{"$f":"MAX($A$1:A92)+1","v":91},null,null,null,null,null,null,null,null,null,null,"(Ноль) рублей 00 коп."]
[{"$f":"MAX($A$1:A93)+1","v":92},null,null,null,null,null,null,null,null,null,null,"(Ноль) рублей 00 коп."]
[{"$f":"MAX($A$1:A94)+1","v":93},null,null,null,null,null,null,null,null,null,null,"(Ноль) рублей 00 коп."]
[{"$f":"MAX($A$1:A95)+1","v":94},null,null,null,null,null,null,null,null,null,null,"(Ноль) рублей 00 коп."]
[{"$f":"MAX($A$1:A96)+1","v":95},null,null,null,null,null,null,null,null,null,null,"(Ноль) рублей 00 коп."]
[{"$f":"MAX($A$1:A97)+1","v":96},null,null,null,null,null,null,null,null,null,null,"(Ноль) рублей 00 коп."]
[{"$f":"MAX($A$1:A98)+1","v":97},null,null,null,null,null,null,null,null,null,null,"(Ноль) рублей 00 коп."]
[{"$f":"MAX($A$1:A99)+1","v":98},null,null,null,null,null,null,null,null,null,null,"(Ноль) рублей 00 коп."]
[{"$f":"MAX($A$1:A100)+1","v":99},null,null,null,null,null,null,null,null,null,null,"(Ноль) рублей 00 коп."]
[{"$f":"MAX($A$1:A101)+1","v":100},null,null,null,null,null,null,null,null,null,null,"(Ноль) рублей 00 коп."]
[{"$f":"MAX($A$1:A102)+1","v":101},null,null,null,null,null,null,null,null,null,null,"(Ноль) рублей 00 коп."]
[{"$f":"MAX($A$1:A103)+1","v":102},null,null,null,null,null,null,null,null,null,null,"(Ноль) рублей 00 коп."]
[{"$f":"MAX($A$1:A104)+1","v":103},null,null,null,null,null,null,null,null,null,null,"(Ноль) рублей 00 коп."]
[{"$f":"MAX($A$1:A105)+1","v":104},null,null,null,null,null,null,null,null,null,null,"(Ноль) рублей 00 коп."]
[{"$f":"MAX($A$1:A106)+1","v":105},null,null,null,null,null,null,null,null,null,null,"(Ноль) рублей 00 коп."]
[{"$f":"MAX($A$1:A107)+1","v":106},null,null,null,null,null,null,null,null,null,null,"(Ноль) рублей 00 коп."]
[{"$f":"MAX($A$1:A108)+1","v":107},null,null,null,null,null,null,null,null,null,null,"(Ноль) рублей 00 коп."]
[{"$f":"MAX($A$1:A109)+1","v":108},null,null,null,null,null,null,null,null,null,null,"(Ноль) рублей 00 коп."]
[{"$f":"MAX($A$1:A110)+1","v":109},null,null,null,null,null,null,null,null,null,null,"(Ноль) рублей 00 коп."]
[{"$f":"MAX($A$1:A111)+1","v":110},null,null,null,null,null,null,null,null,null,null,"(Ноль) рублей 00 коп."]
[{"$f":"MAX($A$1:A112)+1","v":111},null,null,null,null,null,null,null,null,null,null,"(Ноль) рублей 00 коп."]
[{"$f":"MAX($A$1:A113)+1","v":112},null,null,null,null,null,null,null,null,null,null,"(Ноль) рублей 00 коп."]
[{"$f":"MAX($A$1:A114)+1","v":113},null,null,null,null,null,null,null,null,null,null,"(Ноль) рублей 00 коп."]
[{"$f":"MAX($A$1:A115)+1","v":114},null,null,null,null,null,null,null,null,null,null,"(Ноль) рублей 00 коп."]
[{"$f":"MAX($A$1:A116)+1","v":115},null,null,null,null,null,null,null,null,null,null,"(Ноль) рублей 00 коп."]
[{"$f":"MAX($A$1:A117)+1","v":116},null,null,null,null,null,null,null,null,null,null,"(Ноль) рублей 00 коп."]
[{"$f":"MAX($A$1:A118)+1","v":117},null,null,null,null,null,null,null,null,null,null,"(Ноль) рублей 00 коп."]
[{"$f":"MAX($A$1:A119)+1","v":118},null,null,null,null,null,null,null,null,null,null,"(Ноль) рублей 00 коп."]
[{"$f":"MAX($A$1:A120)+1","v":119},null,null,null,null,null,null,null,null,null,null,"(Ноль) рублей 00 коп."]
[{"$f":"MAX($A$1:A121)+1","v":120},null,null,null,null,null,null,null,null,null,null,{"$f":"MSumProp(K122)","v":"(Ноль) рублей 00 коп."}]
[{"$f":"MAX($A$1:A122)+1","v":121},null,null,null,null,null,null,null,null,null,null,"(Ноль) рублей 00 коп."]
[{"$f":"MAX($A$1:A123)+1","v":122},null,null,null,null,null,null,null,null,null,null,"(Ноль) рублей 00 коп."]
[{"$f":"MAX($A$1:A124)+1","v":123},null,null,null,null,null,null,null,null,null,null,"(Ноль) рублей 00 коп."]
[{"$f":"MAX($A$1:A125)+1","v":124},null,null,null,null,null,null,null,null,null,null,"(Ноль) рублей 00 коп."]
[{"$f":"MAX($A$1:A126)+1","v":125},null,null,null,null,null,null,null,null,null,null,"(Ноль) рублей 00 коп."]
[{"$f":"MAX($A$1:A127)+1","v":126},null,null,null,null,null,null,null,null,null,null,"(Ноль) рублей 00 коп."]
[{"$f":"MAX($A$1:A128)+1","v":127},null,null,null,null,null,null,null,null,null,null,"(Ноль) рублей 00 коп."]
[{"$f":"MAX($A$1:A129)+1","v":128},null,null,null,null,null,null,null,null,null,null,"(Ноль) рублей 00 коп."]
[{"$f":"MAX($A$1:A130)+1","v":129},null,null,null,null,null,null,null,null,null,null,"(Ноль) рублей 00 коп."]
[{"$f":"MAX($A$1:A131)+1","v":130},null,null,null,null,null,null,null,null,null,null,"(Ноль) рублей 00 коп."]
[{"$f":"MAX($A$1:A132)+1","v":131},null,null,null,null,null,null,null,null,null,null,"(Ноль) рублей 00 коп."]
[{"$f":"MAX($A$1:A133)+1","v":132},null,null,null,null,null,null,null,null,null,null,"(Ноль) рублей 00 коп."]
[{"$f":"MAX($A$1:A134)+1","v":133},null,null,null,null,null,null,null,null,null,null,"(Ноль) рублей 00 коп."]
[{"$f":"MAX($A$1:A135)+1","v":134},null,null,null,null,null,null,null,null,null,null,"(Ноль) рублей 00 коп."]
[{"$f":"MAX($A$1:A136)+1","v":135},null,null,null,null,null,null,null,null,null,null,"(Ноль) рублей 00 коп."]
[{"$f":"MAX($A$1:A137)+1","v":136},null,null,null,null,null,null,null,null,null,null,"(Ноль) рублей 00 коп."]
[{"$f":"MAX($A$1:A138)+1","v":137},null,null,null,null,null,null,null,null,null,null,"(Ноль) рублей 00 коп."]
[{"$f":"MAX($A$1:A139)+1","v":138},null,null,null,null,null,null,null,null,null,null,"(Ноль) рублей 00 коп."]
[{"$f":"MAX($A$1:A140)+1","v":139},null,null,null,null,null,null,null,null,null,null,"(Ноль) рублей 00 коп."]
[{"$f":"MAX($A$1:A141)+1","v":140},null,null,null,null,null,null,null,null,null,null,"(Ноль) рублей 00 коп."]
[{"$f":"MAX($A$1:A142)+1","v":141},null,null,null,null,null,null,null,null,null,null,"(Ноль) рублей 00 коп."]
[{"$f":"MAX($A$1:A143)+1","v":142},null,null,null,null,null,null,null,null,null,null,"(Ноль) рублей 00 коп."]
[{"$f":"MAX($A$1:A144)+1","v":143},null,null,null,null,null,null,null,null,null,null,"(Ноль) рублей 00 коп."]
[{"$f":"MAX($A$1:A145)+1","v":144},null,null,null,null,null,null,null,null,null,null,"(Ноль) рублей 00 коп."]
[{"$f":"MAX($A$1:A146)+1","v":145},null,null,null,null,null,null,null,null,null,null,"(Ноль) рублей 00 коп."]
[{"$f":"MAX($A$1:A147)+1","v":146},null,null,null,null,null,null,null,null,null,null,"(Ноль) рублей 00 коп."]
[{"$f":"MAX($A$1:A148)+1","v":147},null,null,null,null,null,null,null,null,null,null,"(Ноль) рублей 00 коп."]
[{"$f":"MAX($A$1:A149)+1","v":148},null,null,null,null,null,null,null,null,null,null,"(Ноль) рублей 00 коп."]
[{"$f":"MAX($A$1:A150)+1","v":149},null,null,null,null,null,null,null,null,null,null,"(Ноль) рублей 00 коп."]
[{"$f":"MAX($A$1:A151)+1","v":150},null,null,null,null,null,null,null,null,null,null,"(Ноль) рублей 00 коп."]
[{"$f":"MAX($A$1:A152)+1","v":151},null,null,null,null,null,null,null,null,null,null,"(Ноль) рублей 00 коп."]
[{"$f":"MAX($A$1:A153)+1","v":152},null,null,null,null,null,null,null,null,null,null,"(Ноль) рублей 00 коп."]
[{"$f":"MAX($A$1:A154)+1","v":153},null,null,null,null,null,null,null,null,null,null,"(Ноль) рублей 00 коп."]
[{"$f":"MAX($A$1:A155)+1","v":154},null,null,null,null,null,null,null,null,null,null,"(Ноль) рублей 00 коп."]
[{"$f":"MAX($A$1:A156)+1","v":155},null,null,null,null,null,null,null,null,null,null,"(Ноль) рублей 00 коп."]
[{"$f":"MAX($A$1:A157)+1","v":156},null,null,null,null,null,null,null,null,null,null,"(Ноль) рублей 00 коп."]
[{"$f":"MAX($A$1:A158)+1","v":157},null,null,null,null,null,null,null,null,null,null,"(Ноль) рублей 00 коп."]
[{"$f":"MAX($A$1:A159)+1","v":158},null,null,null,null,null,null,null,null,null,null,"(Ноль) рублей 00 коп."]
[{"$f":"MAX($A$1:A160)+1","v":159},null,null,null,null,null,null,null,null,null,null,"(Ноль) рублей 00 коп."]
[{"$f":"MAX($A$1:A161)+1","v":160},null,null,null,null,null,null,null,null,null,null,"(Ноль) рублей 00 коп."]
[{"$f":"MAX($A$1:A162)+1","v":161},null,null,null,null,null,null,null,null,null,null,"(Ноль) рублей 00 коп."]
[{"$f":"MAX($A$1:A163)+1","v":162},null,null,null,null,null,null,null,null,null,null,"(Ноль) рублей 00 коп."]
[{"$f":"MAX($A$1:A164)+1","v":163},null,null,null,null,null,null,null,null,null,null,"(Ноль) рублей 00 коп."]
[{"$f":"MAX($A$1:A165)+1","v":164},null,null,null,null,null,null,null,null,null,null,"(Ноль) рублей 00 коп."]
[{"$f":"MAX($A$1:A166)+1","v":165},null,null,null,null,null,null,null,null,null,null,"(Ноль) рублей 00 коп."]
[{"$f":"MAX($A$1:A167)+1","v":166},null,null,null,null,null,null,null,null,null,null,"(Ноль) рублей 00 коп."]
[{"$f":"MAX($A$1:A168)+1","v":167},null,null,null,null,null,null,null,null,null,null,"(Ноль) рублей 00 коп."]
[{"$f":"MAX($A$1:A169)+1","v":168},null,null,null,null,null,null,null,null,null,null,"(Ноль) рублей 00 коп."]
[{"$f":"MAX($A$1:A170)+1","v":169},null,null,null,null,null,null,null,null,null,null,"(Ноль) рублей 00 коп."]
[{"$f":"MAX($A$1:A171)+1","v":170},null,null,null,null,null,null,null,null,null,null,"(Ноль) рублей 00 коп."]
[{"$f":"MAX($A$1:A172)+1","v":171},null,null,null,null,null,null,null,null,null,null,"(Ноль) рублей 00 коп."]
[{"$f":"MAX($A$1:A173)+1","v":172},null,null,null,null,null,null,null,null,null,null,"(Ноль) рублей 00 коп."]
[{"$f":"MAX($A$1:A174)+1","v":173},null,null,null,null,null,null,null,null,null,null,"(Ноль) рублей 00 коп."]
[{"$f":"MAX($A$1:A175)+1","v":174},null,null,null,null,null,null,null,null,null,null,"(Ноль) рублей 00 коп."]
[{"$f":"MAX($A$1:A176)+1","v":175},null,null,null,null,null,null,null,null,null,null,"(Ноль) рублей 00 коп."]
[{"$f":"MAX($A$1:A177)+1","v":176},null,null,null,null,null,null,null,null,null,null,"(Ноль) рублей 00 коп."]
[{"$f":"MAX($A$1:A178)+1","v":177},null,null,null,null,null,null,null,null,null,null,"(Ноль) рублей 00 коп."]
[{"$f":"MAX($A$1:A179)+1","v":178},null,null,null,null,null,null,null,null,null,null,"(Ноль) рублей 00 коп."]
[{"$f":"MAX($A$1:A180)+1","v":179},null,null,null,null,null,null,null,null,null,null,"(Ноль) рублей 00 коп."]
[{"$f":"MAX($A$1:A181)+1","v":180},null,null,null,null,null,null,null,null,null,null,"(Ноль) рублей 00 коп."]
[{"$f":"MAX($A$1:A182)+1","v":181},null,null,null,null,null,null,null,null,null,null,"(Ноль) рублей 00 коп."]
[{"$f":"MAX($A$1:A183)+1","v":182},null,null,null,null,null,null,null,null,null,null,"(Ноль) рублей 00 коп."]
[{"$f":"MAX($A$1:A184)+1","v":183},null,null,null,null,null,null,null,null,null,null,"(Ноль) рублей 00 коп."]
[{"$f":"MAX($A$1:A185)+1","v":184},null,null,null,null,null,null,null,null,null,null,{"$f":"MSumProp(K186)","v":"(Ноль) рублей 00 коп."}]
[{"$f":"MAX($A$1:A186)+1","v":185},null,null,null,null,null,null,null,null,null,null,"(Ноль) рублей 00 коп."]
[{"$f":"MAX($A$1:A187)+1","v":186},null,null,null,null,null,null,null,null,null,null,"(Ноль) рублей 00 коп."]
[{"$f":"MAX($A$1:A188)+1","v":187},null,null,null,null,null,null,null,null,null,null,"(Ноль) рублей 00 коп."]
[{"$f":"MAX($A$1:A189)+1","v":188},null,null,null,null,null,null,null,null,null,null,"(Ноль) рублей 00 коп."]
[{"$f":"MAX($A$1:A190)+1","v":189},null,null,null,null,null,null,null,null,null,null,"(Ноль) рублей 00 коп."]
[{"$f":"MAX($A$1:A191)+1","v":190},null,null,null,null,null,null,null,null,null,null,"(Ноль) рублей 00 коп."]
[{"$f":"MAX($A$1:A192)+1","v":191},null,null,null,null,null,null,null,null,null,null,"(Ноль) рублей 00 коп."]
[{"$f":"MAX($A$1:A193)+1","v":192},null,null,null,null,null,null,null,null,null,null,"(Ноль) рублей 00 коп."]
[{"$f":"MAX($A$1:A194)+1","v":193},null,null,null,null,null,null,null,null,null,null,"(Ноль) рублей 00 коп."]
[{"$f":"MAX($A$1:A195)+1","v":194},null,null,null,null,null,null,null,null,null,null,"(Ноль) рублей 00 коп."]
[{"$f":"MAX($A$1:A196)+1","v":195},null,null,null,null,null,null,null,null,null,null,"(Ноль) рублей 00 коп."]
[{"$f":"MAX($A$1:A197)+1","v":196},null,null,null,null,null,null,null,null,null,null,"(Ноль) рублей 00 коп."]
[{"$f":"MAX($A$1:A198)+1","v":197},null,null,null,null,null,null,null,null,null,null,"(Ноль) рублей 00 коп."]
[{"$f":"MAX($A$1:A199)+1","v":198},null,null,null,null,null,null,null,null,null,null,"(Ноль) рублей 00 коп."]
[{"$f":"MAX($A$1:A200)+1","v":199},null,null,null,null,null,null,null,null,null,null,"(Ноль) рублей 00 коп."]

{"sheet":"Таблица КТС","index":2,"n_rows":139,"n_cols":4,"rows_kept":139,"cut":false,"hidden":false,"merged":[[133,1,133,3],[14,0,14,3],[15,0,15,3],[16,0,16,3],[17,0,17,3],[18,0,18,3],[1,0,1,3],[4,0,4,3],[2,0,2,3],[3,0,3,3],[19,0,19,3],[11,0,11,3],[12,0,12,3],[13,0,13,3]]}
[null,{"$f":"SUM(D22:D132)","v":26800},{"$f":"MSumProp(B1)","v":"(Двадцать шесть тысяч восемьсот) рублей 00 коп."}]
["Состав"]
["комиссии по трудовым спорам"]
["Общества с ограниченной ответственностью «Управление»"]
[{"$f":"Дата!C2","v":"2017-06-25"}]
["комиссия по трудовым спорам в составе:"]
["Председателя КТС: Антоновой Антонины Петровны"]
["Зам. председателя КТС: Кузьмина Карнила Карниловича"]
["Членов КТС: - Кузьминой Г.А."]
[null,"            - Курочкиной О.В.\n            - Мышенкова М.В.\n            - Быстрякова С.Б.\n            - Макарова Р.А.\n            - Сульдиной В.Д.\n            - Модина В.Н."]
["Секретаря КТС: Гашуткиной Г.И."]
[{"$f":"Данные!C2&Дата!G4&Данные!C3&Дата!I2&\" \"&Дата!J2&\" г.\"","v":"     Рассмотрев на заседании заявления работников Общества с ограниченной ответственностью «Управление» от 30 апреля 2017 о невыплате заработной платы за май 2017 г."}]
["УСТАНОВИЛА"]
[{"$f":"Данные!C4&Дата!I2&\" месяц \"&Дата!J2&\" г. на общую сумму \"&FLOOR(B1,1)&\" \"&TEXT(C1,\"\")","v":"     Заявители – работники Общества с ограниченной ответственностью «Управление» просят взыскать с администрации Общества с ограниченной ответственностью «Управление» заработную плату за май месяц 2017 г. на общую сумму 26800 (Двадцать шесть тысяч восемьсот) рублей 00 коп."}]
[{"$f":"Данные!C5&Дата!G5&Данные!C6","v":"     Факт невыплаты заработной платы подтверждается поданными заявлениями работников от 30 апреля 2017 года, а ее сумма прилагаемыми справками о причитающейся заработной плате."}]
[{"$f":"Данные!C7","v":"     Выслушав стороны и исследовав документы, комиссия находит, что требования заявителей подлежать удовлетворению, так как в соответствии со ст. 136 Трудового кодекса РФ выплата заработной платы должна производиться не реже, чем каждые полмесяца."}]
[{"$f":"Данные!C8","v":"     На основании изложенного, комиссия приняла единогласное решение удовлетворить требования заявителей о выплате заработной платы, и руководствуясь ст.ст. 383-395 Трудового кодекса РФ"}]
["РЕШИЛА"]
[{"$f":"Данные!C9&\" \"&FLOOR(B1,1)&\" \"&TEXT(C1,\"\")&\" за \"&Дата!I2&\" месяц \"&Дата!J2&\" г.\"","v":"     Взыскать с Общества с ограниченной ответственностью «Управление» в пользу работников ООО «Управление» заработную плату на общую сумму  26800 (Двадцать шесть тысяч восемьсот) рублей 00 коп. за май месяц 2017 г."}]
["СПИСОК"]
["№ п/п","Ф.И.О.","Должность","Сумма руб."]
[1,{"$f":"VLOOKUP(A22,Таблица!$A$2:$L$201,2)","v":"Иванов Иван Иванович"},{"$f":"VLOOKUP(A22,Таблица!$A$2:$L$201,4)","v":"Главный инженер"},{"$f":"VLOOKUP(A22,Таблица!$A$2:$L$201,11)","v":9800}]
[2,{"$f":"VLOOKUP(A23,Таблица!$A$2:$L$201,2)","v":"Иванов Иван Иванович"},{"$f":"VLOOKUP(A23,Таблица!$A$2:$L$201,4)","v":"Главный инженер"},{"$f":"VLOOKUP(A23,Таблица!$A$2:$L$201,11)","v":9800}]
[3,{"$f":"VLOOKUP(A24,Таблица!$A$2:$L$201,2)","v":"Петров Пётр Петрович"},{"$f":"VLOOKUP(A24,Таблица!$A$2:$L$201,4)","v":"Инженер-сметчик"},{"$f":"VLOOKUP(A24,Таблица!$A$2:$L$201,11)","v":7200}]
[4,{"$f":"VLOOKUP(A25,Таблица!$A$2:$L$201,2)","v":"Борисов Борис Борисович"},{"$f":"VLOOKUP(A25,Таблица!$A$2:$L$201,4)","v":0},{"$f":"VLOOKUP(A25,Таблица!$A$2:$L$201,11)","v":0}]
[5,{"$f":"VLOOKUP(A26,Таблица!$A$2:$L$201,2)","v":0},{"$f":"VLOOKUP(A26,Таблица!$A$2:$L$201,4)","v":0},{"$f":"VLOOKUP(A26,Таблица!$A$2:$L$201,11)","v":0}]
[6,{"$f":"VLOOKUP(A27,Таблица!$A$2:$L$201,2)","v":0},{"$f":"VLOOKUP(A27,Таблица!$A$2:$L$201,4)","v":0},{"$f":"VLOOKUP(A27,Таблица!$A$2:$L$201,11)","v":0}]
[7,{"$f":"VLOOKUP(A28,Таблица!$A$2:$L$201,2)","v":0},{"$f":"VLOOKUP(A28,Таблица!$A$2:$L$201,4)","v":0},{"$f":"VLOOKUP(A28,Таблица!$A$2:$L$201,11)","v":0}]
[8,{"$f":"VLOOKUP(A29,Таблица!$A$2:$L$201,2)","v":0},{"$f":"VLOOKUP(A29,Таблица!$A$2:$L$201,4)","v":0},{"$f":"VLOOKUP(A29,Таблица!$A$2:$L$201,11)","v":0}]
[9,{"$f":"VLOOKUP(A30,Таблица!$A$2:$L$201,2)","v":0},{"$f":"VLOOKUP(A30,Таблица!$A$2:$L$201,4)","v":0},{"$f":"VLOOKUP(A30,Таблица!$A$2:$L$201,11)","v":0}]
[10,{"$f":"VLOOKUP(A31,Таблица!$A$2:$L$201,2)","v":0},{"$f":"VLOOKUP(A31,Таблица!$A$2:$L$201,4)","v":0},{"$f":"VLOOKUP(A31,Таблица!$A$2:$L$201,11)","v":0}]
[11,{"$f":"VLOOKUP(A32,Таблица!$A$2:$L$201,2)","v":0},{"$f":"VLOOKUP(A32,Таблица!$A$2:$L$201,4)","v":0},{"$f":"VLOOKUP(A32,Таблица!$A$2:$L$201,11)","v":0}]
[12,{"$f":"VLOOKUP(A33,Таблица!$A$2:$L$201,2)","v":0},{"$f":"VLOOKUP(A33,Таблица!$A$2:$L$201,4)","v":0},{"$f":"VLOOKUP(A33,Таблица!$A$2:$L$201,11)","v":0}]
[13,{"$f":"VLOOKUP(A34,Таблица!$A$2:$L$201,2)","v":0},{"$f":"VLOOKUP(A34,Таблица!$A$2:$L$201,4)","v":0},{"$f":"VLOOKUP(A34,Таблица!$A$2:$L$201,11)","v":0}]
[14,{"$f":"VLOOKUP(A35,Таблица!$A$2:$L$201,2)","v":0},{"$f":"VLOOKUP(A35,Таблица!$A$2:$L$201,4)","v":0},{"$f":"VLOOKUP(A35,Таблица!$A$2:$L$201,11)","v":0}]
[15,{"$f":"VLOOKUP(A36,Таблица!$A$2:$L$201,2)","v":0},{"$f":"VLOOKUP(A36,Таблица!$A$2:$L$201,4)","v":0},{"$f":"VLOOKUP(A36,Таблица!$A$2:$L$201,11)","v":0}]
[16,{"$f":"VLOOKUP(A37,Таблица!$A$2:$L$201,2)","v":0},{"$f":"VLOOKUP(A37,Таблица!$A$2:$L$201,4)","v":0},{"$f":"VLOOKUP(A37,Таблица!$A$2:$L$201,11)","v":0}]
[17,{"$f":"VLOOKUP(A38,Таблица!$A$2:$L$201,2)","v":0},{"$f":"VLOOKUP(A38,Таблица!$A$2:$L$201,4)","v":0},{"$f":"VLOOKUP(A38,Таблица!$A$2:$L$201,11)","v":0}]
[18,{"$f":"VLOOKUP(A39,Таблица!$A$2:$L$201,2)","v":0},{"$f":"VLOOKUP(A39,Таблица!$A$2:$L$201,4)","v":0},{"$f":"VLOOKUP(A39,Таблица!$A$2:$L$201,11)","v":0}]
[19,{"$f":"VLOOKUP(A40,Таблица!$A$2:$L$201,2)","v":0},{"$f":"VLOOKUP(A40,Таблица!$A$2:$L$201,4)","v":0},{"$f":"VLOOKUP(A40,Таблица!$A$2:$L$201,11)","v":0}]
[20,{"$f":"VLOOKUP(A41,Таблица!$A$2:$L$201,2)","v":0},{"$f":"VLOOKUP(A41,Таблица!$A$2:$L$201,4)","v":0},{"$f":"VLOOKUP(A41,Таблица!$A$2:$L$201,11)","v":0}]
[21,{"$f":"VLOOKUP(A42,Таблица!$A$2:$L$201,2)","v":0},{"$f":"VLOOKUP(A42,Таблица!$A$2:$L$201,4)","v":0},{"$f":"VLOOKUP(A42,Таблица!$A$2:$L$201,11)","v":0}]
[22,{"$f":"VLOOKUP(A43,Таблица!$A$2:$L$201,2)","v":0},{"$f":"VLOOKUP(A43,Таблица!$A$2:$L$201,4)","v":0},{"$f":"VLOOKUP(A43,Таблица!$A$2:$L$201,11)","v":0}]
[23,{"$f":"VLOOKUP(A44,Таблица!$A$2:$L$201,2)","v":0},{"$f":"VLOOKUP(A44,Таблица!$A$2:$L$201,4)","v":0},{"$f":"VLOOKUP(A44,Таблица!$A$2:$L$201,11)","v":0}]
[24,{"$f":"VLOOKUP(A45,Таблица!$A$2:$L$201,2)","v":0},{"$f":"VLOOKUP(A45,Таблица!$A$2:$L$201,4)","v":0},{"$f":"VLOOKUP(A45,Таблица!$A$2:$L$201,11)","v":0}]
[25,{"$f":"VLOOKUP(A46,Таблица!$A$2:$L$201,2)","v":0},{"$f":"VLOOKUP(A46,Таблица!$A$2:$L$201,4)","v":0},{"$f":"VLOOKUP(A46,Таблица!$A$2:$L$201,11)","v":0}]
[26,{"$f":"VLOOKUP(A47,Таблица!$A$2:$L$201,2)","v":0},{"$f":"VLOOKUP(A47,Таблица!$A$2:$L$201,4)","v":0},{"$f":"VLOOKUP(A47,Таблица!$A$2:$L$201,11)","v":0}]
[27,{"$f":"VLOOKUP(A48,Таблица!$A$2:$L$201,2)","v":0},{"$f":"VLOOKUP(A48,Таблица!$A$2:$L$201,4)","v":0},{"$f":"VLOOKUP(A48,Таблица!$A$2:$L$201,11)","v":0}]
[28,{"$f":"VLOOKUP(A49,Таблица!$A$2:$L$201,2)","v":0},{"$f":"VLOOKUP(A49,Таблица!$A$2:$L$201,4)","v":0},{"$f":"VLOOKUP(A49,Таблица!$A$2:$L$201,11)","v":0}]
[29,{"$f":"VLOOKUP(A50,Таблица!$A$2:$L$201,2)","v":0},{"$f":"VLOOKUP(A50,Таблица!$A$2:$L$201,4)","v":0},{"$f":"VLOOKUP(A50,Таблица!$A$2:$L$201,11)","v":0}]
[31,{"$f":"VLOOKUP(A51,Таблица!$A$2:$L$201,2)","v":0},{"$f":"VLOOKUP(A51,Таблица!$A$2:$L$201,4)","v":0},{"$f":"VLOOKUP(A51,Таблица!$A$2:$L$201,11)","v":0}]
[31,{"$f":"VLOOKUP(A52,Таблица!$A$2:$L$201,2)","v":0},{"$f":"VLOOKUP(A52,Таблица!$A$2:$L$201,4)","v":0},{"$f":"VLOOKUP(A52,Таблица!$A$2:$L$201,11)","v":0}]
[32,{"$f":"VLOOKUP(A53,Таблица!$A$2:$L$201,2)","v":0},{"$f":"VLOOKUP(A53,Таблица!$A$2:$L$201,4)","v":0},{"$f":"VLOOKUP(A53,Таблица!$A$2:$L$201,11)","v":0}]
[33,{"$f":"VLOOKUP(A54,Таблица!$A$2:$L$201,2)","v":0},{"$f":"VLOOKUP(A54,Таблица!$A$2:$L$201,4)","v":0},{"$f":"VLOOKUP(A54,Таблица!$A$2:$L$201,11)","v":0}]
[34,{"$f":"VLOOKUP(A55,Таблица!$A$2:$L$201,2)","v":0},{"$f":"VLOOKUP(A55,Таблица!$A$2:$L$201,4)","v":0},{"$f":"VLOOKUP(A55,Таблица!$A$2:$L$201,11)","v":0}]
[35,{"$f":"VLOOKUP(A56,Таблица!$A$2:$L$201,2)","v":0},{"$f":"VLOOKUP(A56,Таблица!$A$2:$L$201,4)","v":0},{"$f":"VLOOKUP(A56,Таблица!$A$2:$L$201,11)","v":0}]
[36,{"$f":"VLOOKUP(A57,Таблица!$A$2:$L$201,2)","v":0},{"$f":"VLOOKUP(A57,Таблица!$A$2:$L$201,4)","v":0},{"$f":"VLOOKUP(A57,Таблица!$A$2:$L$201,11)","v":0}]
[37,{"$f":"VLOOKUP(A58,Таблица!$A$2:$L$201,2)","v":0},{"$f":"VLOOKUP(A58,Таблица!$A$2:$L$201,4)","v":0},{"$f":"VLOOKUP(A58,Таблица!$A$2:$L$201,11)","v":0}]
[38,{"$f":"VLOOKUP(A59,Таблица!$A$2:$L$201,2)","v":0},{"$f":"VLOOKUP(A59,Таблица!$A$2:$L$201,4)","v":0},{"$f":"VLOOKUP(A59,Таблица!$A$2:$L$201,11)","v":0}]
[39,{"$f":"VLOOKUP(A60,Таблица!$A$2:$L$201,2)","v":0},{"$f":"VLOOKUP(A60,Таблица!$A$2:$L$201,4)","v":0},{"$f":"VLOOKUP(A60,Таблица!$A$2:$L$201,11)","v":0}]
[40,{"$f":"VLOOKUP(A61,Таблица!$A$2:$L$201,2)","v":0},{"$f":"VLOOKUP(A61,Таблица!$A$2:$L$201,4)","v":0},{"$f":"VLOOKUP(A61,Таблица!$A$2:$L$201,11)","v":0}]
[41,{"$f":"VLOOKUP(A62,Таблица!$A$2:$L$201,2)","v":0},{"$f":"VLOOKUP(A62,Таблица!$A$2:$L$201,4)","v":0},{"$f":"VLOOKUP(A62,Таблица!$A$2:$L$201,11)","v":0}]
[42,{"$f":"VLOOKUP(A63,Таблица!$A$2:$L$201,2)","v":0},{"$f":"VLOOKUP(A63,Таблица!$A$2:$L$201,4)","v":0},{"$f":"VLOOKUP(A63,Таблица!$A$2:$L$201,11)","v":0}]
[43,{"$f":"VLOOKUP(A64,Таблица!$A$2:$L$201,2)","v":0},{"$f":"VLOOKUP(A64,Таблица!$A$2:$L$201,4)","v":0},{"$f":"VLOOKUP(A64,Таблица!$A$2:$L$201,11)","v":0}]
[44,{"$f":"VLOOKUP(A65,Таблица!$A$2:$L$201,2)","v":0},{"$f":"VLOOKUP(A65,Таблица!$A$2:$L$201,4)","v":0},{"$f":"VLOOKUP(A65,Таблица!$A$2:$L$201,11)","v":0}]
[45,{"$f":"VLOOKUP(A66,Таблица!$A$2:$L$201,2)","v":0},{"$f":"VLOOKUP(A66,Таблица!$A$2:$L$201,4)","v":0},{"$f":"VLOOKUP(A66,Таблица!$A$2:$L$201,11)","v":0}]
[46,{"$f":"VLOOKUP(A67,Таблица!$A$2:$L$201,2)","v":0},{"$f":"VLOOKUP(A67,Таблица!$A$2:$L$201,4)","v":0},{"$f":"VLOOKUP(A67,Таблица!$A$2:$L$201,11)","v":0}]
[47,{"$f":"VLOOKUP(A68,Таблица!$A$2:$L$201,2)","v":0},{"$f":"VLOOKUP(A68,Таблица!$A$2:$L$201,4)","v":0},{"$f":"VLOOKUP(A68,Таблица!$A$2:$L$201,11)","v":0}]
[48,{"$f":"VLOOKUP(A69,Таблица!$A$2:$L$201,2)","v":0},{"$f":"VLOOKUP(A69,Таблица!$A$2:$L$201,4)","v":0},{"$f":"VLOOKUP(A69,Таблица!$A$2:$L$201,11)","v":0}]
[49,{"$f":"VLOOKUP(A70,Таблица!$A$2:$L$201,2)","v":0},{"$f":"VLOOKUP(A70,Таблица!$A$2:$L$201,4)","v":0},{"$f":"VLOOKUP(A70,Таблица!$A$2:$L$201,11)","v":0}]
[50,{"$f":"VLOOKUP(A71,Таблица!$A$2:$L$201,2)","v":0},{"$f":"VLOOKUP(A71,Таблица!$A$2:$L$201,4)","v":0},{"$f":"VLOOKUP(A71,Таблица!$A$2:$L$201,11)","v":0}]
[51,{"$f":"VLOOKUP(A72,Таблица!$A$2:$L$201,2)","v":0},{"$f":"VLOOKUP(A72,Таблица!$A$2:$L$201,4)","v":0},{"$f":"VLOOKUP(A72,Таблица!$A$2:$L$201,11)","v":0}]
[52,{"$f":"VLOOKUP(A73,Таблица!$A$2:$L$201,2)","v":0},{"$f":"VLOOKUP(A73,Таблица!$A$2:$L$201,4)","v":0},{"$f":"VLOOKUP(A73,Таблица!$A$2:$L$201,11)","v":0}]
[53,{"$f":"VLOOKUP(A74,Таблица!$A$2:$L$201,2)","v":0},{"$f":"VLOOKUP(A74,Таблица!$A$2:$L$201,4)","v":0},{"$f":"VLOOKUP(A74,Таблица!$A$2:$L$201,11)","v":0}]
[54,{"$f":"VLOOKUP(A75,Таблица!$A$2:$L$201,2)","v":0},{"$f":"VLOOKUP(A75,Таблица!$A$2:$L$201,4)","v":0},{"$f":"VLOOKUP(A75,Таблица!$A$2:$L$201,11)","v":0}]
[55,{"$f":"VLOOKUP(A76,Таблица!$A$2:$L$201,2)","v":0},{"$f":"VLOOKUP(A76,Таблица!$A$2:$L$201,4)","v":0},{"$f":"VLOOKUP(A76,Таблица!$A$2:$L$201,11)","v":0}]
[56,{"$f":"VLOOKUP(A77,Таблица!$A$2:$L$201,2)","v":0},{"$f":"VLOOKUP(A77,Таблица!$A$2:$L$201,4)","v":0},{"$f":"VLOOKUP(A77,Таблица!$A$2:$L$201,11)","v":0}]
[57,{"$f":"VLOOKUP(A78,Таблица!$A$2:$L$201,2)","v":0},{"$f":"VLOOKUP(A78,Таблица!$A$2:$L$201,4)","v":0},{"$f":"VLOOKUP(A78,Таблица!$A$2:$L$201,11)","v":0}]
[58,{"$f":"VLOOKUP(A79,Таблица!$A$2:$L$201,2)","v":0},{"$f":"VLOOKUP(A79,Таблица!$A$2:$L$201,4)","v":0},{"$f":"VLOOKUP(A79,Таблица!$A$2:$L$201,11)","v":0}]
[59,{"$f":"VLOOKUP(A80,Таблица!$A$2:$L$201,2)","v":0},{"$f":"VLOOKUP(A80,Таблица!$A$2:$L$201,4)","v":0},{"$f":"VLOOKUP(A80,Таблица!$A$2:$L$201,11)","v":0}]
[60,{"$f":"VLOOKUP(A81,Таблица!$A$2:$L$201,2)","v":0},{"$f":"VLOOKUP(A81,Таблица!$A$2:$L$201,4)","v":0},{"$f":"VLOOKUP(A81,Таблица!$A$2:$L$201,11)","v":0}]
[61,{"$f":"VLOOKUP(A82,Таблица!$A$2:$L$201,2)","v":0},{"$f":"VLOOKUP(A82,Таблица!$A$2:$L$201,4)","v":0},{"$f":"VLOOKUP(A82,Таблица!$A$2:$L$201,11)","v":0}]
[62,{"$f":"VLOOKUP(A83,Таблица!$A$2:$L$201,2)","v":0},{"$f":"VLOOKUP(A83,Таблица!$A$2:$L$201,4)","v":0},{"$f":"VLOOKUP(A83,Таблица!$A$2:$L$201,11)","v":0}]
[63,{"$f":"VLOOKUP(A84,Таблица!$A$2:$L$201,2)","v":0},{"$f":"VLOOKUP(A84,Таблица!$A$2:$L$201,4)","v":0},{"$f":"VLOOKUP(A84,Таблица!$A$2:$L$201,11)","v":0}]
[64,{"$f":"VLOOKUP(A85,Таблица!$A$2:$L$201,2)","v":0},{"$f":"VLOOKUP(A85,Таблица!$A$2:$L$201,4)","v":0},{"$f":"VLOOKUP(A85,Таблица!$A$2:$L$201,11)","v":0}]
[65,{"$f":"VLOOKUP(A86,Таблица!$A$2:$L$201,2)","v":0},{"$f":"VLOOKUP(A86,Таблица!$A$2:$L$201,4)","v":0},{"$f":"VLOOKUP(A86,Таблица!$A$2:$L$201,11)","v":0}]
[66,{"$f":"VLOOKUP(A87,Таблица!$A$2:$L$201,2)","v":0},{"$f":"VLOOKUP(A87,Таблица!$A$2:$L$201,4)","v":0},{"$f":"VLOOKUP(A87,Таблица!$A$2:$L$201,11)","v":0}]
[67,{"$f":"VLOOKUP(A88,Таблица!$A$2:$L$201,2)","v":0},{"$f":"VLOOKUP(A88,Таблица!$A$2:$L$201,4)","v":0},{"$f":"VLOOKUP(A88,Таблица!$A$2:$L$201,11)","v":0}]
[68,{"$f":"VLOOKUP(A89,Таблица!$A$2:$L$201,2)","v":0},{"$f":"VLOOKUP(A89,Таблица!$A$2:$L$201,4)","v":0},{"$f":"VLOOKUP(A89,Таблица!$A$2:$L$201,11)","v":0}]
[69,{"$f":"VLOOKUP(A90,Таблица!$A$2:$L$201,2)","v":0},{"$f":"VLOOKUP(A90,Таблица!$A$2:$L$201,4)","v":0},{"$f":"VLOOKUP(A90,Таблица!$A$2:$L$201,11)","v":0}]
[70,{"$f":"VLOOKUP(A91,Таблица!$A$2:$L$201,2)","v":0},{"$f":"VLOOKUP(A91,Таблица!$A$2:$L$201,4)","v":0},{"$f":"VLOOKUP(A91,Таблица!$A$2:$L$201,11)","v":0}]
[71,{"$f":"VLOOKUP(A92,Таблица!$A$2:$L$201,2)","v":0},{"$f":"VLOOKUP(A92,Таблица!$A$2:$L$201,4)","v":0},{"$f":"VLOOKUP(A92,Таблица!$A$2:$L$201,11)","v":0}]
[72,{"$f":"VLOOKUP(A93,Таблица!$A$2:$L$201,2)","v":0},{"$f":"VLOOKUP(A93,Таблица!$A$2:$L$201,4)","v":0},{"$f":"VLOOKUP(A93,Таблица!$A$2:$L$201,11)","v":0}]
[73,{"$f":"VLOOKUP(A94,Таблица!$A$2:$L$201,2)","v":0},{"$f":"VLOOKUP(A94,Таблица!$A$2:$L$201,4)","v":0},{"$f":"VLOOKUP(A94,Таблица!$A$2:$L$201,11)","v":0}]
[74,{"$f":"VLOOKUP(A95,Таблица!$A$2:$L$201,2)","v":0},{"$f":"VLOOKUP(A95,Таблица!$A$2:$L$201,4)","v":0},{"$f":"VLOOKUP(A95,Таблица!$A$2:$L$201,11)","v":0}]
[75,{"$f":"VLOOKUP(A96,Таблица!$A$2:$L$201,2)","v":0},{"$f":"VLOOKUP(A96,Таблица!$A$2:$L$201,4)","v":0},{"$f":"VLOOKUP(A96,Таблица!$A$2:$L$201,11)","v":0}]
[76,{"$f":"VLOOKUP(A97,Таблица!$A$2:$L$201,2)","v":0},{"$f":"VLOOKUP(A97,Таблица!$A$2:$L$201,4)","v":0},{"$f":"VLOOKUP(A97,Таблица!$A$2:$L$201,11)","v":0}]
[77,{"$f":"VLOOKUP(A98,Таблица!$A$2:$L$201,2)","v":0},{"$f":"VLOOKUP(A98,Таблица!$A$2:$L$201,4)","v":0},{"$f":"VLOOKUP(A98,Таблица!$A$2:$L$201,11)","v":0}]
[78,{"$f":"VLOOKUP(A99,Таблица!$A$2:$L$201,2)","v":0},{"$f":"VLOOKUP(A99,Таблица!$A$2:$L$201,4)","v":0},{"$f":"VLOOKUP(A99,Таблица!$A$2:$L$201,11)","v":0}]
[79,{"$f":"VLOOKUP(A100,Таблица!$A$2:$L$201,2)","v":0},{"$f":"VLOOKUP(A100,Таблица!$A$2:$L$201,4)","v":0},{"$f":"VLOOKUP(A100,Таблица!$A$2:$L$201,11)","v":0}]
[80,{"$f":"VLOOKUP(A101,Таблица!$A$2:$L$201,2)","v":0},{"$f":"VLOOKUP(A101,Таблица!$A$2:$L$201,4)","v":0},{"$f":"VLOOKUP(A101,Таблица!$A$2:$L$201,11)","v":0}]
[81,{"$f":"VLOOKUP(A102,Таблица!$A$2:$L$201,2)","v":0},{"$f":"VLOOKUP(A102,Таблица!$A$2:$L$201,4)","v":0},{"$f":"VLOOKUP(A102,Таблица!$A$2:$L$201,11)","v":0}]
[82,{"$f":"VLOOKUP(A103,Таблица!$A$2:$L$201,2)","v":0},{"$f":"VLOOKUP(A103,Таблица!$A$2:$L$201,4)","v":0},{"$f":"VLOOKUP(A103,Таблица!$A$2:$L$201,11)","v":0}]
[83,{"$f":"VLOOKUP(A104,Таблица!$A$2:$L$201,2)","v":0},{"$f":"VLOOKUP(A104,Таблица!$A$2:$L$201,4)","v":0},{"$f":"VLOOKUP(A104,Таблица!$A$2:$L$201,11)","v":0}]
[84,{"$f":"VLOOKUP(A105,Таблица!$A$2:$L$201,2)","v":0},{"$f":"VLOOKUP(A105,Таблица!$A$2:$L$201,4)","v":0},{"$f":"VLOOKUP(A105,Таблица!$A$2:$L$201,11)","v":0}]
[85,{"$f":"VLOOKUP(A106,Таблица!$A$2:$L$201,2)","v":0},{"$f":"VLOOKUP(A106,Таблица!$A$2:$L$201,4)","v":0},{"$f":"VLOOKUP(A106,Таблица!$A$2:$L$201,11)","v":0}]
[86,{"$f":"VLOOKUP(A107,Таблица!$A$2:$L$201,2)","v":0},{"$f":"VLOOKUP(A107,Таблица!$A$2:$L$201,4)","v":0},{"$f":"VLOOKUP(A107,Таблица!$A$2:$L$201,11)","v":0}]
[87,{"$f":"VLOOKUP(A108,Таблица!$A$2:$L$201,2)","v":0},{"$f":"VLOOKUP(A108,Таблица!$A$2:$L$201,4)","v":0},{"$f":"VLOOKUP(A108,Таблица!$A$2:$L$201,11)","v":0}]
[88,{"$f":"VLOOKUP(A109,Таблица!$A$2:$L$201,2)","v":0},{"$f":"VLOOKUP(A109,Таблица!$A$2:$L$201,4)","v":0},{"$f":"VLOOKUP(A109,Таблица!$A$2:$L$201,11)","v":0}]
[89,{"$f":"VLOOKUP(A110,Таблица!$A$2:$L$201,2)","v":0},{"$f":"VLOOKUP(A110,Таблица!$A$2:$L$201,4)","v":0},{"$f":"VLOOKUP(A110,Таблица!$A$2:$L$201,11)","v":0}]
[90,{"$f":"VLOOKUP(A111,Таблица!$A$2:$L$201,2)","v":0},{"$f":"VLOOKUP(A111,Таблица!$A$2:$L$201,4)","v":0},{"$f":"VLOOKUP(A111,Таблица!$A$2:$L$201,11)","v":0}]
[91,{"$f":"VLOOKUP(A112,Таблица!$A$2:$L$201,2)","v":0},{"$f":"VLOOKUP(A112,Таблица!$A$2:$L$201,4)","v":0},{"$f":"VLOOKUP(A112,Таблица!$A$2:$L$201,11)","v":0}]
[92,{"$f":"VLOOKUP(A113,Таблица!$A$2:$L$201,2)","v":0},{"$f":"VLOOKUP(A113,Таблица!$A$2:$L$201,4)","v":0},{"$f":"VLOOKUP(A113,Таблица!$A$2:$L$201,11)","v":0}]
[93,{"$f":"VLOOKUP(A114,Таблица!$A$2:$L$201,2)","v":0},{"$f":"VLOOKUP(A114,Таблица!$A$2:$L$201,4)","v":0},{"$f":"VLOOKUP(A114,Таблица!$A$2:$L$201,11)","v":0}]
[94,{"$f":"VLOOKUP(A115,Таблица!$A$2:$L$201,2)","v":0},{"$f":"VLOOKUP(A115,Таблица!$A$2:$L$201,4)","v":0},{"$f":"VLOOKUP(A115,Таблица!$A$2:$L$201,11)","v":0}]
[95,{"$f":"VLOOKUP(A116,Таблица!$A$2:$L$201,2)","v":0},{"$f":"VLOOKUP(A116,Таблица!$A$2:$L$201,4)","v":0},{"$f":"VLOOKUP(A116,Таблица!$A$2:$L$201,11)","v":0}]
[96,{"$f":"VLOOKUP(A117,Таблица!$A$2:$L$201,2)","v":0},{"$f":"VLOOKUP(A117,Таблица!$A$2:$L$201,4)","v":0},{"$f":"VLOOKUP(A117,Таблица!$A$2:$L$201,11)","v":0}]
[97,{"$f":"VLOOKUP(A118,Таблица!$A$2:$L$201,2)","v":0},{"$f":"VLOOKUP(A118,Таблица!$A$2:$L$201,4)","v":0},{"$f":"VLOOKUP(A118,Таблица!$A$2:$L$201,11)","v":0}]
[98,{"$f":"VLOOKUP(A119,Таблица!$A$2:$L$201,2)","v":0},{"$f":"VLOOKUP(A119,Таблица!$A$2:$L$201,4)","v":0},{"$f":"VLOOKUP(A119,Таблица!$A$2:$L$201,11)","v":0}]
[99,{"$f":"VLOOKUP(A120,Таблица!$A$2:$L$201,2)","v":0},{"$f":"VLOOKUP(A120,Таблица!$A$2:$L$201,4)","v":0},{"$f":"VLOOKUP(A120,Таблица!$A$2:$L$201,11)","v":0}]
[100,{"$f":"VLOOKUP(A121,Таблица!$A$2:$L$201,2)","v":0},{"$f":"VLOOKUP(A121,Таблица!$A$2:$L$201,4)","v":0},{"$f":"VLOOKUP(A121,Таблица!$A$2:$L$201,11)","v":0}]
[101,{"$f":"VLOOKUP(A122,Таблица!$A$2:$L$201,2)","v":0},{"$f":"VLOOKUP(A122,Таблица!$A$2:$L$201,4)","v":0},{"$f":"VLOOKUP(A122,Таблица!$A$2:$L$201,11)","v":0}]
[102,{"$f":"VLOOKUP(A123,Таблица!$A$2:$L$201,2)","v":0},{"$f":"VLOOKUP(A123,Таблица!$A$2:$L$201,4)","v":0},{"$f":"VLOOKUP(A123,Таблица!$A$2:$L$201,11)","v":0}]
[103,{"$f":"VLOOKUP(A124,Таблица!$A$2:$L$201,2)","v":0},{"$f":"VLOOKUP(A124,Таблица!$A$2:$L$201,4)","v":0},{"$f":"VLOOKUP(A124,Таблица!$A$2:$L$201,11)","v":0}]
[104,{"$f":"VLOOKUP(A125,Таблица!$A$2:$L$201,2)","v":0},{"$f":"VLOOKUP(A125,Таблица!$A$2:$L$201,4)","v":0},{"$f":"VLOOKUP(A125,Таблица!$A$2:$L$201,11)","v":0}]
[105,{"$f":"VLOOKUP(A126,Таблица!$A$2:$L$201,2)","v":0},{"$f":"VLOOKUP(A126,Таблица!$A$2:$L$201,4)","v":0},{"$f":"VLOOKUP(A126,Таблица!$A$2:$L$201,11)","v":0}]
[106,{"$f":"VLOOKUP(A127,Таблица!$A$2:$L$201,2)","v":0},{"$f":"VLOOKUP(A127,Таблица!$A$2:$L$201,4)","v":0},{"$f":"VLOOKUP(A127,Таблица!$A$2:$L$201,11)","v":0}]
[107,{"$f":"VLOOKUP(A128,Таблица!$A$2:$L$201,2)","v":0},{"$f":"VLOOKUP(A128,Таблица!$A$2:$L$201,4)","v":0},{"$f":"VLOOKUP(A128,Таблица!$A$2:$L$201,11)","v":0}]
[108,{"$f":"VLOOKUP(A129,Таблица!$A$2:$L$201,2)","v":0},{"$f":"VLOOKUP(A129,Таблица!$A$2:$L$201,4)","v":0},{"$f":"VLOOKUP(A129,Таблица!$A$2:$L$201,11)","v":0}]
[109,{"$f":"VLOOKUP(A130,Таблица!$A$2:$L$201,2)","v":0},{"$f":"VLOOKUP(A130,Таблица!$A$2:$L$201,4)","v":0},{"$f":"VLOOKUP(A130,Таблица!$A$2:$L$201,11)","v":0}]
[110,{"$f":"VLOOKUP(A131,Таблица!$A$2:$L$201,2)","v":0},{"$f":"VLOOKUP(A131,Таблица!$A$2:$L$201,4)","v":0},{"$f":"VLOOKUP(A131,Таблица!$A$2:$L$201,11)","v":0}]
[111,{"$f":"VLOOKUP(A132,Таблица!$A$2:$L$201,2)","v":0},{"$f":"VLOOKUP(A132,Таблица!$A$2:$L$201,4)","v":0},{"$f":"VLOOKUP(A132,Таблица!$A$2:$L$201,11)","v":0}]
[]
["итого:",{"$f":"FLOOR(B1,1)&\" \"&TEXT(C1,\"\")","v":"26800 (Двадцать шесть тысяч восемьсот) рублей 00 коп."}]
[]
["Председатель комиссии"]
["по трудовым спорам        __________________",null,{"$f":"Данные!B8","v":"Антонова А.П."}]
[]
["Секретарь комиссии        __________________",null,{"$f":"Данные!B9","v":"Гашуткина Г.И."}]

{"sheet":"1","index":3,"n_rows":42,"n_cols":3,"rows_kept":42,"cut":false,"hidden":false,"merged":[[14,1,14,3],[1,1,1,3],[2,0,2,3],[3,1,3,3],[4,0,4,3],[6,1,6,3],[7,0,7,1],[8,0,8,3],[9,0,9,3],[10,1,10,3],[11,0,11,3],[12,0,12,3],[41,2,41,3],[15,2,15,3],[16,2,16,3],[30,1,30,3],[31,1,31,3],[34,1,34,3],[35,1,35,3],[36,1,36,3],[37,0,37,3],[38,0,38,3],[39,1,39,3],[40,2,40,3]]}
[]
[null,"Комиссия по трудовым спорам\nОбщества с ограниченной ответственностью \n«Управление»"]
[{"$f":"--RIGHTB(SUBSTITUTE(CELL(\"filename\",D1),\"]\",REPT(\" \",31)),31)","v":1}]
[null,{"$f":"Дата!B2","v":"2017-06-24"}]
[{"$f":"Данные!B2&\" \"&Дата!A2&\" от \"&Дата!G2&\" года \"&Данные!B3&Дата!I2&\" месяц \"&Дата!J2&\" года.\"","v":"     Настоящее удостоверение выдано на основании Решения КТС Общества с ограниченной ответственностью «Управление» № 6 от 25 июня 2017 года о взыскании невыплаченной своевременно заработной платы за май месяц 2017 года."}]
["в пользу:",{"$f":"VLOOKUP(A3,Таблица!A2:L201,3)","v":"Иванова Ивана Ивановича"}]
["в сумме:",{"$f":"FLOOR(VLOOKUP(A3,Таблица!A2:L201,11),1)&\" \"&VLOOKUP(A3,Таблица!A2:L201,12)","v":"9800 (Девять тысяч восемьсот) рублей 00 коп."}]
["     Решение комиссии по трудовым спорам:"]
[{"$f":"Данные!B4&\" в пользу:\"","v":"     Взыскать с Общества с ограниченной ответственностью «Управление»  юридический адрес: 444444, г. Энска, мкр. Стройка, д. 1, Банковские реквизиты:  АКБ «БАНККРЕДИТПРОСТОМБАНК» ПАО г. Энска, р/счет 98765432100000123456, Кор. счет 98765432100000000123, ИНН 222004444, БИК 012345678  в пользу:"}]
[{"$f":"VLOOKUP($A$3,Таблица!$A$2:$L$201,3)&\", дата рождения \"&TEXT((VLOOKUP($A$3,Таблица!$A$2:$L$201,5)),\"ДД.ММ.ГГГГ\")&\" года, \"&\"место рождения: \"&VLOOKUP($A$3,Таблица!$A$2:$L$201,6)&\", адрес: \"&VLOOKUP(A3,Таблица!A2:L201,8)&Данные!B5&Дата!I2&\" месяц \"&Дата!J2&\" года\"&\" в сумме: \"&FLOOR(VLOOKUP(A3,Таблица!A2:L201,11),1)&\" \"&VLOOKUP(A3,Таблица!A2:L201,12)","v":"Иванова Ивана Ивановича, дата рождения 21.10.1961 года, место рождения: с.Чужое Энского района, адрес: Энская Республика, г. Энск, ул. Ленина, 1, кв. 2, невыплаченную заработную плату за май месяц 2017 года в сумме: 9800 (Девять тысяч восемьсот) рублей 00 коп."}]
[null,{"$f":"Дата!D2","v":"2017-06-26"}]
[{"$f":"Данные!B6","v":"     Настоящее удостоверение имеет силу исполнительного листа и предъявляется к исполнению не позднее 3-х месяцев со следующего дня его выдачи."}]
[{"$f":"Данные!B7","v":"     Налог на доходы физических лиц, налог в пенсионный фонд с указанной суммы удержаны."}]
[]
[null,{"$f":"Дата!B2","v":"2017-06-24"}]
[null,"Председатель КТС:",{"$f":"Данные!B8","v":"Антонова А.П."}]
[null,"Секретарь КТС:",{"$f":"Данные!B9","v":"Гашуткина Г.И."}]
[]
[]
[]
[]
[]
[]
[]
[]
[]
[]
[]
[]
[]
[null,"АКБ «БАНККРЕДИТПРОСТОМБАНК» ПАО"]
[null,"город Энск, улица Патриса Лумумбы, 26"]
[null,"БИК 04970625"]
[null,{"$f":"VLOOKUP($A$3,Таблица!$A$2:$L$201,3)","v":"Иванова Ивана Ивановича"}]
[null,{"$f":"\"Паспорт: \"&VLOOKUP($A$3,Таблица!$A$2:$L$201,7)","v":"Паспорт: 98 01 № 123456 выдан Отделением УФМС России по Энской Республике в Энском районе 15 ноября 2007 г."}]
[null,{"$f":"\"Адрес: \"&VLOOKUP($A$3,Таблица!$A$2:$L$201,8)","v":"Адрес: Энская Республика, г. Энск, ул. Ленина, 1, кв. 2"}]
[null,{"$f":"\"ИНН \"&VLOOKUP($A$3,Таблица!$A$2:$L$201,9)","v":"ИНН 202201234567"}]
[{"$f":"Данные!C12&\" \"&A3&\" от \"&Дата!F2&\" года, \"&Данные!C13&Дата!I2&\" месяц \"&Дата!J2&\" года.\"","v":"     Предъявляется для взыскания с расчетного счета Общества с ограниченной ответственностью «Управление» № 12345678998745632145, открытого в АКБ «БАНККРЕДИТПРОСТОМБАНК» ПАО удостоверение комиссии по трудовым спорам Общества с ограниченной ответственностью «Управление» № 1 от 24 июня 2017 года, на выплату заработной платы за май месяц 2017 года."}]
[{"$f":"Данные!C14&FLOOR(VLOOKUP(A3,Таблица!A2:L201,11),1)&\" \"&VLOOKUP(A3,Таблица!A2:L201,12)&Данные!C15&VLOOKUP($A$3,Таблица!$A$2:$L$201,10)&Данные!C16","v":"     на сумму 9800 (Девять тысяч восемьсот) рублей 00 коп. к списанию в мою пользу на лицевой счет № 00000000000000000001 в АКБ «БАНККРЕДИТПРОСТОМБАНК» ПАО."}]
[null,{"$f":"Дата!B2","v":"2017-06-24"}]
[null,{"$f":"VLOOKUP($A$3,Таблица!$A$2:$L$201,2)","v":"Иванов Иван Иванович"}]
[null,"Фамилия Имя Отчество","Подпись"]

{"sheet":"2","index":4,"n_rows":42,"n_cols":3,"rows_kept":42,"cut":false,"hidden":false,"merged":[[14,1,14,3],[1,1,1,3],[2,0,2,3],[3,1,3,3],[4,0,4,3],[6,1,6,3],[7,0,7,1],[8,0,8,3],[9,0,9,3],[10,1,10,3],[11,0,11,3],[12,0,12,3],[41,2,41,3],[15,2,15,3],[16,2,16,3],[30,1,30,3],[31,1,31,3],[34,1,34,3],[35,1,35,3],[36,1,36,3],[37,0,37,3],[38,0,38,3],[39,1,39,3],[40,2,40,3]]}
[]
[null,"Комиссия по трудовым спорам\nОбщества с ограниченной ответственностью \n«Управление ЖКХ»"]
[{"$f":"--RIGHTB(SUBSTITUTE(CELL(\"filename\",D1),\"]\",REPT(\" \",31)),31)","v":2}]
[null,{"$f":"Дата!B2","v":"2017-06-24"}]
[{"$f":"Данные!B2&\" \"&Дата!A2&\" от \"&Дата!G2&\" года \"&Данные!B3&Дата!I2&\" месяц \"&Дата!J2&\" года.\"","v":"     Настоящее удостоверение выдано на основании Решения КТС Общества с ограниченной ответственностью «Управление» № 6 от 25 июня 2017 года о взыскании невыплаченной своевременно заработной платы за май месяц 2017 года."}]
["в пользу:",{"$f":"VLOOKUP(A3,Таблица!A2:L201,3)","v":"Иванова Ивана Ивановича"}]
["в сумме:",{"$f":"FLOOR(VLOOKUP(A3,Таблица!A2:L201,11),1)&\" \"&VLOOKUP(A3,Таблица!A2:L201,12)","v":"9800 (Девять тысяч восемьсот) рублей 00 коп."}]
["     Решение комиссии по трудовым спорам:"]
[{"$f":"Данные!B4&\" в пользу:\"","v":"     Взыскать с Общества с ограниченной ответственностью «Управление»  юридический адрес: 444444, г. Энска, мкр. Стройка, д. 1, Банковские реквизиты:  АКБ «БАНККРЕДИТПРОСТОМБАНК» ПАО г. Энска, р/счет 98765432100000123456, Кор. счет 98765432100000000123, ИНН 222004444, БИК 012345678  в пользу:"}]
[{"$f":"VLOOKUP($A$3,Таблица!$A$2:$L$201,3)&\", дата рождения \"&TEXT((VLOOKUP($A$3,Таблица!$A$2:$L$201,5)),\"ДД.ММ.ГГГГ\")&\" года, \"&\"место рождения: \"&VLOOKUP($A$3,Таблица!$A$2:$L$201,6)&\", адрес: \"&VLOOKUP(A3,Таблица!A2:L201,8)&Данные!B5&Дата!I2&\" месяц \"&Дата!J2&\" года\"&\" в сумме: \"&FLOOR(VLOOKUP(A3,Таблица!A2:L201,11),1)&\" \"&VLOOKUP(A3,Таблица!A2:L201,12)","v":"Иванова Ивана Ивановича, дата рождения 21.10.1961 года, место рождения: с.Чужое Энского района, адрес: Энская Республика, г. Энск, ул. Ленина, 1, кв. 2, невыплаченную заработную плату за май месяц 2017 года в сумме: 9800 (Девять тысяч восемьсот) рублей 00 коп."}]
[null,{"$f":"Дата!D2","v":"2017-06-26"}]
[{"$f":"Данные!B6","v":"     Настоящее удостоверение имеет силу исполнительного листа и предъявляется к исполнению не позднее 3-х месяцев со следующего дня его выдачи."}]
[{"$f":"Данные!B7","v":"     Налог на доходы физических лиц, налог в пенсионный фонд с указанной суммы удержаны."}]
[]
[null,{"$f":"Дата!B2","v":"2017-06-24"}]
[null,"Председатель КТС:",{"$f":"Данные!B8","v":"Антонова А.П."}]
[null,"Секретарь КТС:",{"$f":"Данные!B9","v":"Гашуткина Г.И."}]
[]
[]
[]
[]
[]
[]
[]
[]
[]
[]
[]
[]
[]
[null,"АКБ «ЧУВАШКРЕДИТПРОМБАНК» ПАО"]
[null,"Чувашская Республика, город Алатырь, улица Горшенина, 26"]
[null,"БИК 04970625"]
[null,{"$f":"VLOOKUP($A$3,Таблица!$A$2:$L$201,3)","v":"Иванова Ивана Ивановича"}]
[null,{"$f":"\"Паспорт: \"&VLOOKUP($A$3,Таблица!$A$2:$L$201,7)","v":"Паспорт: 98 01 № 123456 выдан Отделением УФМС России по Энской Республике в Энском районе 15 ноября 2007 г."}]
[null,{"$f":"\"Адрес: \"&VLOOKUP($A$3,Таблица!$A$2:$L$201,8)","v":"Адрес: Энская Республика, г. Энск, ул. Ленина, 1, кв. 2"}]
[null,{"$f":"\"ИНН \"&VLOOKUP($A$3,Таблица!$A$2:$L$201,9)","v":"ИНН 202201234567"}]
[{"$f":"Данные!C12&\" \"&A3&\" от \"&Дата!F2&\" года, \"&Данные!C13&Дата!I2&\" месяц \"&Дата!J2&\" года.\"","v":"     Предъявляется для взыскания с расчетного счета Общества с ограниченной ответственностью «Управление» № 12345678998745632145, открытого в АКБ «БАНККРЕДИТПРОСТОМБАНК» ПАО удостоверение комиссии по трудовым спорам Общества с ограниченной ответственностью «Управление» № 2 от 24 июня 2017 года, на выплату заработной платы за май месяц 2017 года."}]
[{"$f":"Данные!C14&FLOOR(VLOOKUP(A3,Таблица!A2:L201,11),1)&\" \"&VLOOKUP(A3,Таблица!A2:L201,12)&Данные!C15&VLOOKUP($A$3,Таблица!$A$2:$L$201,10)&Данные!C16","v":"     на сумму 9800 (Девять тысяч восемьсот) рублей 00 коп. к списанию в мою пользу на лицевой счет № 00000000000000000001 в АКБ «БАНККРЕДИТПРОСТОМБАНК» ПАО."}]
[null,{"$f":"Дата!B2","v":"2017-06-24"}]
[null,{"$f":"VLOOKUP($A$3,Таблица!$A$2:$L$201,2)","v":"Иванов Иван Иванович"}]
[null,"Фамилия Имя Отчество","Подпись"]

{"sheet":"3","index":5,"n_rows":42,"n_cols":3,"rows_kept":42,"cut":false,"hidden":false,"merged":[[36,1,36,3],[37,0,37,3],[38,0,38,3],[39,1,39,3],[40,2,40,3],[41,2,41,3],[15,2,15,3],[16,2,16,3],[30,1,30,3],[31,1,31,3],[34,1,34,3],[35,1,35,3],[8,0,8,3],[9,0,9,3],[10,1,10,3],[11,0,11,3],[12,0,12,3],[14,1,14,3],[1,1,1,3],[2,0,2,3],[3,1,3,3],[4,0,4,3],[6,1,6,3],[7,0,7,1]]}
[]
[null,"Комиссия по трудовым спорам\nОбщества с ограниченной ответственностью \n«Управление»"]
[{"$f":"--RIGHTB(SUBSTITUTE(CELL(\"filename\",D1),\"]\",REPT(\" \",31)),31)","v":3}]
[null,{"$f":"Дата!B2","v":"2017-06-24"}]
[{"$f":"Данные!B2&\" \"&Дата!A2&\" от \"&Дата!G2&\" года \"&Данные!B3&Дата!I2&\" месяц \"&Дата!J2&\" года.\"","v":"     Настоящее удостоверение выдано на основании Решения КТС Общества с ограниченной ответственностью «Управление» № 6 от 25 июня 2017 года о взыскании невыплаченной своевременно заработной платы за май месяц 2017 года."}]
["в пользу:",{"$f":"VLOOKUP(A3,Таблица!A2:L201,3)","v":"Петрова Пётра Петровича"}]
["в сумме:",{"$f":"FLOOR(VLOOKUP(A3,Таблица!A2:L201,11),1)&\" \"&VLOOKUP(A3,Таблица!A2:L201,12)","v":"7200 (Семь тысяч двести) рублей 00 коп."}]
["     Решение комиссии по трудовым спорам:"]
[{"$f":"Данные!B4&\" в пользу:\"","v":"     Взыскать с Общества с ограниченной ответственностью «Управление»  юридический адрес: 444444, г. Энска, мкр. Стройка, д. 1, Банковские реквизиты:  АКБ «БАНККРЕДИТПРОСТОМБАНК» ПАО г. Энска, р/счет 98765432100000123456, Кор. счет 98765432100000000123, ИНН 222004444, БИК 012345678  в пользу:"}]
[{"$f":"VLOOKUP($A$3,Таблица!$A$2:$L$201,3)&\", дата рождения \"&TEXT((VLOOKUP($A$3,Таблица!$A$2:$L$201,5)),\"ДД.ММ.ГГГГ\")&\" года, \"&\"место рождения: \"&VLOOKUP($A$3,Таблица!$A$2:$L$201,6)&\", адрес: \"&VLOOKUP(A3,Таблица!A2:L201,8)&Данные!B5&Дата!I2&\" месяц \"&Дата!J2&\" года\"&\" в сумме: \"&FLOOR(VLOOKUP(A3,Таблица!A2:L201,11),1)&\" \"&VLOOKUP(A3,Таблица!A2:L201,12)","v":"Петрова Пётра Петровича, дата рождения 23.12.1963 года, место рождения: г.Энск Энской АССР, адрес: Энская Республика, г. Энск, ул. Ильича, 1, кв. 4, невыплаченную заработную плату за май месяц 2017 года в сумме: 7200 (Семь тысяч двести) рублей 00 коп."}]
[null,{"$f":"Дата!D2","v":"2017-06-26"}]
[{"$f":"Данные!B6","v":"     Настоящее удостоверение имеет силу исполнительного листа и предъявляется к исполнению не позднее 3-х месяцев со следующего дня его выдачи."}]
[{"$f":"Данные!B7","v":"     Налог на доходы физических лиц, налог в пенсионный фонд с указанной суммы удержаны."}]
[]
[null,{"$f":"Дата!B2","v":"2017-06-24"}]
[null,"Председатель КТС:",{"$f":"Данные!B8","v":"Антонова А.П."}]
[null,"Секретарь КТС:",{"$f":"Данные!B9","v":"Гашуткина Г.И."}]
[]
[]
[]
[]
[]
[]
[]
[]
[]
[]
[]
[]
[]
[null,"АКБ «БАНККРЕДИТПРОСТОМБАНК» ПАО"]
[null,"город Энск, улица Патриса Лумумбы, 26"]
[null,"БИК 04970625"]
[null,{"$f":"VLOOKUP($A$3,Таблица!$A$2:$L$201,3)","v":"Петрова Пётра Петровича"}]
[null,{"$f":"\"Паспорт: \"&VLOOKUP($A$3,Таблица!$A$2:$L$201,7)","v":"Паспорт: 98 03 № 345678 выдан Отделением УФМС России по Энской Республике в Энском районе 17 ноября 2007 г."}]
[null,{"$f":"\"Адрес: \"&VLOOKUP($A$3,Таблица!$A$2:$L$201,8)","v":"Адрес: Энская Республика, г. Энск, ул. Ильича, 1, кв. 4"}]
[null,{"$f":"\"ИНН \"&VLOOKUP($A$3,Таблица!$A$2:$L$201,9)","v":"ИНН 202201234569"}]
[{"$f":"Данные!C12&\" \"&A3&\" от \"&Дата!F2&\" года, \"&Данные!C13&Дата!I2&\" месяц \"&Дата!J2&\" года.\"","v":"     Предъявляется для взыскания с расчетного счета Общества с ограниченной ответственностью «Управление» № 12345678998745632145, открытого в АКБ «БАНККРЕДИТПРОСТОМБАНК» ПАО удостоверение комиссии по трудовым спорам Общества с ограниченной ответственностью «Управление» № 3 от 24 июня 2017 года, на выплату заработной платы за май месяц 2017 года."}]
[{"$f":"Данные!C14&FLOOR(VLOOKUP(A3,Таблица!A2:L201,11),1)&\" \"&VLOOKUP(A3,Таблица!A2:L201,12)&Данные!C15&VLOOKUP($A$3,Таблица!$A$2:$L$201,10)&Данные!C16","v":"     на сумму 7200 (Семь тысяч двести) рублей 00 коп. к списанию в мою пользу на лицевой счет № 00000000000000000003 в АКБ «БАНККРЕДИТПРОСТОМБАНК» ПАО."}]
[null,{"$f":"Дата!B2","v":"2017-06-24"}]
[null,{"$f":"VLOOKUP($A$3,Таблица!$A$2:$L$201,2)","v":"Петров Пётр Петрович"}]
[null,"Фамилия Имя Отчество","Подпись"]

{"sheet":"4","index":6,"n_rows":42,"n_cols":3,"rows_kept":42,"cut":false,"hidden":false,"merged":[[36,1,36,3],[37,0,37,3],[38,0,38,3],[39,1,39,3],[40,2,40,3],[41,2,41,3],[15,2,15,3],[16,2,16,3],[30,1,30,3],[31,1,31,3],[34,1,34,3],[35,1,35,3],[8,0,8,3],[9,0,9,3],[10,1,10,3],[11,0,11,3],[12,0,12,3],[14,1,14,3],[1,1,1,3],[2,0,2,3],[3,1,3,3],[4,0,4,3],[6,1,6,3],[7,0,7,1]]}
[]
[null,"Комиссия по трудовым спорам\nОбщества с ограниченной ответственностью \n«Управление ЖКХ»"]
[{"$f":"--RIGHTB(SUBSTITUTE(CELL(\"filename\",D1),\"]\",REPT(\" \",31)),31)","v":4}]
[null,{"$f":"Дата!B2","v":"2017-06-24"}]
[{"$f":"Данные!B2&\" \"&Дата!A2&\" от \"&Дата!G2&\" года \"&Данные!B3&Дата!I2&\" месяц \"&Дата!J2&\" года.\"","v":"     Настоящее удостоверение выдано на основании Решения КТС Общества с ограниченной ответственностью «Управление» № 6 от 25 июня 2017 года о взыскании невыплаченной своевременно заработной платы за май месяц 2017 года."}]
["в пользу:",{"$f":"VLOOKUP(A3,Таблица!A2:L201,3)","v":"Борисова Бориса Борисовича"}]
["в сумме:",{"$f":"FLOOR(VLOOKUP(A3,Таблица!A2:L201,11),1)&\" \"&VLOOKUP(A3,Таблица!A2:L201,12)","v":"0 (Ноль) рублей 00 коп."}]
["     Решение комиссии по трудовым спорам:"]
[{"$f":"Данные!B4&\" в пользу:\"","v":"     Взыскать с Общества с ограниченной ответственностью «Управление»  юридический адрес: 444444, г. Энска, мкр. Стройка, д. 1, Банковские реквизиты:  АКБ «БАНККРЕДИТПРОСТОМБАНК» ПАО г. Энска, р/счет 98765432100000123456, Кор. счет 98765432100000000123, ИНН 222004444, БИК 012345678  в пользу:"}]
[{"$f":"VLOOKUP($A$3,Таблица!$A$2:$L$201,3)&\", дата рождения \"&TEXT((VLOOKUP($A$3,Таблица!$A$2:$L$201,5)),\"ДД.ММ.ГГГГ\")&\" года, \"&\"место рождения: \"&VLOOKUP($A$3,Таблица!$A$2:$L$201,6)&\", адрес: \"&VLOOKUP(A3,Таблица!A2:L201,8)&Данные!B5&Дата!I2&\" месяц \"&Дата!J2&\" года\"&\" в сумме: \"&FLOOR(VLOOKUP(A3,Таблица!A2:L201,11),1)&\" \"&VLOOKUP(A3,Таблица!A2:L201,12)","v":"Борисова Бориса Борисовича, дата рождения 00.01.1900 года, место рождения: , адрес: , невыплаченную заработную плату за май месяц 2017 года в сумме: 0 (Ноль) рублей 00 коп."}]
[null,{"$f":"Дата!D2","v":"2017-06-26"}]
[{"$f":"Данные!B6","v":"     Настоящее удостоверение имеет силу исполнительного листа и предъявляется к исполнению не позднее 3-х месяцев со следующего дня его выдачи."}]
[{"$f":"Данные!B7","v":"     Налог на доходы физических лиц, налог в пенсионный фонд с указанной суммы удержаны."}]
[]
[null,{"$f":"Дата!B2","v":"2017-06-24"}]
[null,"Председатель КТС:",{"$f":"Данные!B8","v":"Антонова А.П."}]
[null,"Секретарь КТС:",{"$f":"Данные!B9","v":"Гашуткина Г.И."}]
[]
[]
[]
[]
[]
[]
[]
[]
[]
[]
[]
[]
[]
[null,"АКБ «ЧУВАШКРЕДИТПРОМБАНК» ПАО"]
[null,"Чувашская Республика, город Алатырь, улица Горшенина, 26"]
[null,"БИК 04970625"]
[null,{"$f":"VLOOKUP($A$3,Таблица!$A$2:$L$201,3)","v":"Борисова Бориса Борисовича"}]
[null,{"$f":"\"Паспорт: \"&VLOOKUP($A$3,Таблица!$A$2:$L$201,7)","v":"Паспорт: "}]
[null,{"$f":"\"Адрес: \"&VLOOKUP($A$3,Таблица!$A$2:$L$201,8)","v":"Адрес: "}]
[null,{"$f":"\"ИНН \"&VLOOKUP($A$3,Таблица!$A$2:$L$201,9)","v":"ИНН "}]
[{"$f":"Данные!C12&\" \"&A3&\" от \"&Дата!F2&\" года, \"&Данные!C13&Дата!I2&\" месяц \"&Дата!J2&\" года.\"","v":"     Предъявляется для взыскания с расчетного счета Общества с ограниченной ответственностью «Управление» № 12345678998745632145, открытого в АКБ «БАНККРЕДИТПРОСТОМБАНК» ПАО удостоверение комиссии по трудовым спорам Общества с ограниченной ответственностью «Управление» № 4 от 24 июня 2017 года, на выплату заработной платы за май месяц 2017 года."}]
[{"$f":"Данные!C14&FLOOR(VLOOKUP(A3,Таблица!A2:L201,11),1)&\" \"&VLOOKUP(A3,Таблица!A2:L201,12)&Данные!C15&VLOOKUP($A$3,Таблица!$A$2:$L$201,10)&Данные!C16","v":"     на сумму 0 (Ноль) рублей 00 коп. к списанию в мою пользу на лицевой счет №  в АКБ «БАНККРЕДИТПРОСТОМБАНК» ПАО."}]
[null,{"$f":"Дата!B2","v":"2017-06-24"}]
[null,{"$f":"VLOOKUP($A$3,Таблица!$A$2:$L$201,2)","v":"Борисов Борис Борисович"}]
[null,"Фамилия Имя Отчество","Подпись"]

{"sheet":"Данные","index":7,"n_rows":16,"n_cols":3,"rows_kept":16,"cut":false,"hidden":false,"merged":[]}
[]
[null,"     Настоящее удостоверение выдано на основании Решения КТС Общества с ограниченной ответственностью «Управление» №","     Рассмотрев на заседании заявления работников Общества с ограниченной ответственностью «Управление» от "]
[null,"о взыскании невыплаченной своевременно заработной платы за "," о невыплате заработной платы за "]
[null,"     Взыскать с Общества с ограниченной ответственностью «Управление»  юридический адрес: 444444, г. Энска, мкр. Стройка, д. 1, Банковские реквизиты:  АКБ «БАНККРЕДИТПРОСТОМБАНК» ПАО г. Энска, р/счет 98765432100000123456, Кор. счет 98765432100000000123, ИНН 222004444, БИК 012345678 ","     Заявители – работники Общества с ограниченной ответственностью «Управление» просят взыскать с администрации Общества с ограниченной ответственностью «Управление» заработную плату за "]
[null,", невыплаченную заработную плату за ","     Факт невыплаты заработной платы подтверждается поданными заявлениями работников от "]
[null,"     Настоящее удостоверение имеет силу исполнительного листа и предъявляется к исполнению не позднее 3-х месяцев со следующего дня его выдачи.",", а ее сумма прилагаемыми справками о причитающейся заработной плате."]
[null,"     Налог на доходы физических лиц, налог в пенсионный фонд с указанной суммы удержаны.","     Выслушав стороны и исследовав документы, комиссия находит, что требования заявителей подлежать удовлетворению, так как в соответствии со ст. 136 Трудового кодекса РФ выплата заработной платы должна производиться не реже, чем каждые полмесяца."]
["Председатель КТС:","Антонова А.П.","     На основании изложенного, комиссия приняла единогласное решение удовлетворить требования заявителей о выплате заработной платы, и руководствуясь ст.ст. 383-395 Трудового кодекса РФ"]
["Секретарь КТС:","Гашуткина Г.И.","     Взыскать с Общества с ограниченной ответственностью «Управление» в пользу работников ООО «Управление» заработную плату на общую сумму "]
[null,null,"     Настоящее удостоверение выдано на основании Решения КТС Общества с ограниченной ответственностью «Управление» №"]
[null,null," о взыскании невыплаченной своевременно заработной платы за "]
[null,null,"     Предъявляется для взыскания с расчетного счета Общества с ограниченной ответственностью «Управление» № 12345678998745632145, открытого в АКБ «БАНККРЕДИТПРОСТОМБАНК» ПАО удостоверение комиссии по трудовым спорам Общества с ограниченной ответственностью «Управление» №"]
[null,null,"на выплату заработной платы за "]
[null,null,"     на сумму "]
[null,null," к списанию в мою пользу на лицевой счет № "]
[null,null," в АКБ «БАНККРЕДИТПРОСТОМБАНК» ПАО."]